[Event "Titled Tuesday Blitz November 15 Late 2022"]
[White "Timmermans, Mark"]
[Black "Garcia Ramos, Daniel"]
[WhiteFideId "1026399"]
[BlackFideId "32010311"]
[WhiteElo "2460"]
[BlackElo "2357"]
[Result "1-0"]
[Round "06"]
[TimeControl "180+1"]
[Date "2022.11.16"]
[WhiteClock "0:00:46"]
[BlackClock "0:00:19"]

1. b4 {[%clk 0:03:00]}  e5 {[%clk 0:02:57]} 2. Bb2 {[%clk 0:03:00]}  d6 {[%clk 0:02:58]} 3. b5 {[%clk 0:02:58]}  g6 {[%clk 0:02:57]} 4. a4 {[%clk 0:02:58]}  Bg7 {[%clk 0:02:58]} 5. e3 {[%clk 0:02:58]}  Ne7 {[%clk 0:02:58]} 6. c4 {[%clk 0:02:59]}  O-O {[%clk 0:02:58]} 7. Nf3 {[%clk 0:02:59]}  f5 {[%clk 0:02:56]} 8. Be2 {[%clk 0:02:59]}  Nd7 {[%clk 0:02:56]} 9. O-O {[%clk 0:02:59]}  a6 {[%clk 0:02:55]} 10. Nc3 {[%clk 0:02:58]}  e4 {[%clk 0:02:53]} 11. Nd4 {[%clk 0:02:57]}  Nc5 {[%clk 0:02:53]} 12. f3 {[%clk 0:02:53]}  Bd7 {[%clk 0:02:48]} 13. Qc2 {[%clk 0:02:53]}  exf3 {[%clk 0:02:44]} 14. Bxf3 {[%clk 0:02:54]}  g5 {[%clk 0:02:40]} 15. Nd5 {[%clk 0:02:51]}  Ng6 {[%clk 0:02:35]} 16. Nb3 {[%clk 0:02:33]}  Nxb3 {[%clk 0:02:25]} 17. Qxb3 {[%clk 0:02:32]}  Bxb2 {[%clk 0:02:16]} 18. Qxb2 {[%clk 0:02:33]}  g4 {[%clk 0:02:16]} 19. Be2 {[%clk 0:02:32]}  Be6 {[%clk 0:02:05]} 20. Nf4 {[%clk 0:02:30]}  Nxf4 {[%clk 0:02:03]} 21. Rxf4 {[%clk 0:02:31]}  Qf6 {[%clk 0:02:01]} 22. Qxf6 {[%clk 0:02:21]}  Rxf6 {[%clk 0:02:02]} 23. Bxg4 {[%clk 0:02:22]}  axb5 {[%clk 0:02:02]} 24. cxb5 {[%clk 0:02:21]}  Kg7 {[%clk 0:01:59]} 25. Bf3 {[%clk 0:02:21]}  d5 {[%clk 0:01:57]} 26. Rc1 {[%clk 0:02:18]}  Rf7 {[%clk 0:01:56]} 27. g3 {[%clk 0:02:09]}  Kf6 {[%clk 0:01:56]} 28. Rc5 {[%clk 0:02:07]}  Ke5 {[%clk 0:01:56]} 29. Rd4 {[%clk 0:01:58]}  Kd6 {[%clk 0:01:53]} 30. Rc3 {[%clk 0:01:56]}  c5 {[%clk 0:01:50]} 31. bxc6 {[%clk 0:01:46]}  bxc6 {[%clk 0:01:50]} 32. Rb4 {[%clk 0:01:47]}  Ra6 {[%clk 0:01:45]} 33. d4 {[%clk 0:01:40]}  Rfa7 {[%clk 0:01:44]} 34. Bd1 {[%clk 0:01:41]}  Kc7 {[%clk 0:01:32]} 35. Rc5 {[%clk 0:01:28]}  Rb6 {[%clk 0:01:31]} 36. Rxb6 {[%clk 0:01:26]}  Kxb6 {[%clk 0:01:32]} 37. Kf2 {[%clk 0:01:26]}  Bc8 {[%clk 0:01:22]} 38. Bc2 {[%clk 0:01:25]}  Rf7 {[%clk 0:01:19]} 39. Kf3 {[%clk 0:01:24]}  Ba6 {[%clk 0:01:18]} 40. a5+ {[%clk 0:01:23]}  Kc7 {[%clk 0:01:17]} 41. Ba4 {[%clk 0:01:20]}  Rf6 {[%clk 0:01:16]} 42. Kf4 {[%clk 0:01:20]}  Bb7 {[%clk 0:01:11]} 43. Ke5 {[%clk 0:01:18]}  Rf8 {[%clk 0:01:11]} 44. Kf4 {[%clk 0:01:16]}  Re8 {[%clk 0:01:10]} 45. a6 {[%clk 0:01:03]}  Ba8 {[%clk 0:01:11]} 46. a7 {[%clk 0:01:02]}  Kb6 {[%clk 0:00:59]} 47. Kxf5 {[%clk 0:01:01]}  Rxe3 {[%clk 0:00:59]} 48. Bxc6 {[%clk 0:00:57]}  Bxc6 {[%clk 0:00:54]} 49. Rxc6+ {[%clk 0:00:58]}  Kxa7 {[%clk 0:00:55]} 50. Rh6 {[%clk 0:00:53]}  Re7 {[%clk 0:00:45]} 51. Kf6 {[%clk 0:00:53]}  Rb7 {[%clk 0:00:40]} 52. Ke5 {[%clk 0:00:54]}  Kb8 {[%clk 0:00:34]} 53. Kxd5 {[%clk 0:00:53]}  Kc8 {[%clk 0:00:35]} 54. Ke5 {[%clk 0:00:53]}  Re7+ {[%clk 0:00:35]} 55. Re6 {[%clk 0:00:51]}  Rg7 {[%clk 0:00:35]} 56. d5 {[%clk 0:00:50]}  Kd7 {[%clk 0:00:35]} 57. Rf6 {[%clk 0:00:50]}  h5 {[%clk 0:00:33]} 58. Rh6 {[%clk 0:00:48]}  Rg5+ {[%clk 0:00:33]} 59. Ke4 {[%clk 0:00:49]}  Ke7 {[%clk 0:00:33]} 60. d6+ {[%clk 0:00:47]}  Kd7 {[%clk 0:00:33]} 61. Kf4 {[%clk 0:00:48]}  Rd5 {[%clk 0:00:33]} 62. Rf6 {[%clk 0:00:49]}  Rd2 {[%clk 0:00:31]} 63. h4 {[%clk 0:00:48]}  Rd3 {[%clk 0:00:28]} 64. Rf5 {[%clk 0:00:46]}  Kxd6 {[%clk 0:00:23]} 65. Rxh5 {[%clk 0:00:46]}  Ke7 {[%clk 0:00:24]} 66. Rf5 {[%clk 0:00:46]}  Ke6 {[%clk 0:00:23]} 67. g4 {[%clk 0:00:46]}  Rd4+ {[%clk 0:00:22]} 68. Kg5 {[%clk 0:00:46]}  Rd8 {[%clk 0:00:22]} 69. h5 {[%clk 0:00:47]}  Rg8+ {[%clk 0:00:22]} 70. Kh4 {[%clk 0:00:48]}  Rb8 {[%clk 0:00:20]} 71. h6 {[%clk 0:00:48]}  Rb1 {[%clk 0:00:19]} 72. Kg5 {[%clk 0:00:47]}  Rh1 {[%clk 0:00:20]} 73. Kg6 {[%clk 0:00:47]}  Rh4 {[%clk 0:00:20]} 74. g5 {[%clk 0:00:47]}  Rh1 {[%clk 0:00:20]} 75. h7 {[%clk 0:00:46]}  Rh4 {[%clk 0:00:18]} 76. Rf6+ {[%clk 0:00:46]}  Ke7 {[%clk 0:00:19]} 77. Kg7 {[%clk 0:00:46]} 1-0


[Site "https://www.chess.com"]

[Event "Titled Tuesday Blitz November 15 Late 2022"]
[White "Toncheva, Nadya"]
[Black "Harshal, Shahi"]
[WhiteFideId "2924056"]
[BlackFideId "5048257"]
[WhiteElo "2101"]
[BlackElo "2054"]
[Result "1-0"]
[Round "06"]
[TimeControl "180+1"]
[Date "2022.11.16"]
[WhiteClock "0:00:27"]
[BlackClock "0:00:05"]

1. e4 {[%clk 0:03:00]}  c5 {[%clk 0:03:00]} 2. Nf3 {[%clk 0:03:00]}  d6 {[%clk 0:03:00]} 3. d4 {[%clk 0:02:59]}  cxd4 {[%clk 0:03:00]} 4. Nxd4 {[%clk 0:03:00]}  Nf6 {[%clk 0:03:01]} 5. Nc3 {[%clk 0:03:00]}  g6 {[%clk 0:03:02]} 6. Be3 {[%clk 0:02:57]}  Bg7 {[%clk 0:03:01]} 7. Bc4 {[%clk 0:02:56]}  Nc6 {[%clk 0:02:41]} 8. Qd2 {[%clk 0:02:45]}  Ng4 {[%clk 0:02:38]} 9. Nxc6 {[%clk 0:02:15]}  bxc6 {[%clk 0:02:37]} 10. Bg5 {[%clk 0:02:11]}  Qa5 {[%clk 0:02:21]} 11. O-O {[%clk 0:01:58]}  h6 {[%clk 0:02:09]} 12. Bh4 {[%clk 0:01:52]}  O-O {[%clk 0:01:46]} 13. Rad1 {[%clk 0:01:41]}  Kh7 {[%clk 0:01:33]} 14. Bxe7 {[%clk 0:01:30]}  Re8 {[%clk 0:00:58]} 15. Bxd6 {[%clk 0:01:17]}  Rd8 {[%clk 0:00:53]} 16. Qf4 {[%clk 0:00:59]}  f5 {[%clk 0:00:11]} 17. Bc7 {[%clk 0:00:50]}  Rxd1 {[%clk 0:00:10]} 18. Bxa5 {[%clk 0:00:46]}  Be5 {[%clk 0:00:05]} 19. Qf3 {[%clk 0:00:27]} 1-0


[Site "https://www.chess.com"]

[Event "Titled Tuesday Blitz November 15 Late 2022"]
[White "Urbina Perez, Juan Antonio"]
[Black "Nasuta, Grzegorz"]
[WhiteFideId "2217368"]
[BlackFideId "1141686"]
[WhiteElo "2197"]
[BlackElo "2440"]
[Result "1-0"]
[Round "06"]
[TimeControl "180+1"]
[Date "2022.11.16"]
[WhiteClock "0:00:22"]
[BlackClock "0:00:16"]

1. e4 {[%clk 0:03:00]}  c5 {[%clk 0:02:59]} 2. Nf3 {[%clk 0:03:00]}  e6 {[%clk 0:02:59]} 3. b3 {[%clk 0:02:58]}  b6 {[%clk 0:02:58]} 4. d4 {[%clk 0:02:54]}  cxd4 {[%clk 0:02:56]} 5. Nxd4 {[%clk 0:02:55]}  Bb7 {[%clk 0:02:56]} 6. Bd3 {[%clk 0:02:56]}  Nc6 {[%clk 0:02:53]} 7. Bb2 {[%clk 0:02:53]}  Nf6 {[%clk 0:02:40]} 8. Qe2 {[%clk 0:02:50]}  Bb4+ {[%clk 0:02:38]} 9. Nd2 {[%clk 0:02:44]}  Nxd4 {[%clk 0:02:32]} 10. Bxd4 {[%clk 0:02:45]}  Qc7 {[%clk 0:02:32]} 11. O-O-O {[%clk 0:02:23]}  Bc3 {[%clk 0:02:26]} 12. Bxc3 {[%clk 0:02:21]}  Qxc3 {[%clk 0:02:27]} 13. Kb1 {[%clk 0:02:21]}  O-O {[%clk 0:02:24]} 14. Nc4 {[%clk 0:01:50]}  d5 {[%clk 0:02:24]} 15. Nd6 {[%clk 0:01:44]}  Bc6 {[%clk 0:01:44]} 16. e5 {[%clk 0:01:43]}  Nd7 {[%clk 0:01:44]} 17. f4 {[%clk 0:01:43]}  a5 {[%clk 0:01:29]} 18. Bxh7+ {[%clk 0:01:38]}  Kxh7 {[%clk 0:01:27]} 19. Qh5+ {[%clk 0:01:39]}  Kg8 {[%clk 0:01:24]} 20. Rd3 {[%clk 0:01:39]}  d4 {[%clk 0:00:33]} 21. Rxc3 {[%clk 0:01:29]}  dxc3 {[%clk 0:00:34]} 22. Rd1 {[%clk 0:01:25]}  f6 {[%clk 0:00:27]} 23. a4 {[%clk 0:00:51]}  fxe5 {[%clk 0:00:26]} 24. fxe5 {[%clk 0:00:52]}  Nc5 {[%clk 0:00:20]} 25. Rd4 {[%clk 0:00:38]}  Rf1+ {[%clk 0:00:20]} 26. Ka2 {[%clk 0:00:37]}  Rf2 {[%clk 0:00:16]} 27. Rh4 {[%clk 0:00:27]}  Rxc2+ {[%clk 0:00:16]} 28. Ka3 {[%clk 0:00:22]} 1-0


[Site "https://www.chess.com"]

[Event "Titled Tuesday Blitz November 15 Late 2022"]
[White "Wieczorek, Oskar"]
[Black "Badelka, Olga"]
[WhiteFideId "1133950"]
[BlackFideId "13509926"]
[WhiteElo "2404"]
[BlackElo "2337"]
[Result "1-0"]
[Round "06"]
[TimeControl "180+1"]
[Date "2022.11.16"]
[WhiteClock "0:00:27"]
[BlackClock "0:00:02"]

1. e4 {[%clk 0:02:58]}  e5 {[%clk 0:02:59]} 2. Nf3 {[%clk 0:02:58]}  Nc6 {[%clk 0:03:00]} 3. Nc3 {[%clk 0:02:57]}  Nf6 {[%clk 0:02:59]} 4. h3 {[%clk 0:02:58]}  a6 {[%clk 0:02:16]} 5. d4 {[%clk 0:02:57]}  exd4 {[%clk 0:02:16]} 6. Nxd4 {[%clk 0:02:58]}  Bb4 {[%clk 0:02:13]} 7. Nxc6 {[%clk 0:02:58]}  dxc6 {[%clk 0:02:09]} 8. Qxd8+ {[%clk 0:02:49]}  Kxd8 {[%clk 0:02:10]} 9. Bg5 {[%clk 0:02:46]}  h6 {[%clk 0:02:10]} 10. O-O-O+ {[%clk 0:02:43]}  Ke7 {[%clk 0:02:08]} 11. Bd2 {[%clk 0:02:38]}  Be6 {[%clk 0:02:00]} 12. Bd3 {[%clk 0:02:22]}  Rhd8 {[%clk 0:01:50]} 13. f4 {[%clk 0:02:22]}  c5 {[%clk 0:01:29]} 14. f5 {[%clk 0:02:12]}  Bd7 {[%clk 0:01:11]} 15. Rhe1 {[%clk 0:02:08]}  Bxc3 {[%clk 0:01:03]} 16. Bxc3 {[%clk 0:02:08]}  Bc6 {[%clk 0:01:00]} 17. e5 {[%clk 0:01:39]}  Nd5 {[%clk 0:01:00]} 18. Bd2 {[%clk 0:01:40]}  b5 {[%clk 0:01:00]} 19. f6+ {[%clk 0:01:34]}  gxf6 {[%clk 0:00:50]} 20. Bxh6 {[%clk 0:01:32]}  c4 {[%clk 0:00:37]} 21. exf6+ {[%clk 0:01:25]}  Kxf6 {[%clk 0:00:37]} 22. Be4 {[%clk 0:01:22]}  Nb4 {[%clk 0:00:24]} 23. Rf1+ {[%clk 0:01:11]}  Ke5 {[%clk 0:00:23]} 24. Bxc6 {[%clk 0:01:07]}  Rxd1+ {[%clk 0:00:23]} 25. Kxd1 {[%clk 0:01:07]}  Nxc6 {[%clk 0:00:24]} 26. Rxf7 {[%clk 0:01:07]}  Nb4 {[%clk 0:00:23]} 27. a3 {[%clk 0:00:57]}  Nd5 {[%clk 0:00:22]} 28. g4 {[%clk 0:00:53]}  a5 {[%clk 0:00:15]} 29. Rf5+ {[%clk 0:00:44]}  Ke4 {[%clk 0:00:15]} 30. Ke2 {[%clk 0:00:41]}  b4 {[%clk 0:00:14]} 31. axb4 {[%clk 0:00:34]}  axb4 {[%clk 0:00:15]} 32. Bg7 {[%clk 0:00:35]}  Re8 {[%clk 0:00:13]} 33. Kf2 {[%clk 0:00:34]}  b3 {[%clk 0:00:11]} 34. cxb3 {[%clk 0:00:33]}  cxb3 {[%clk 0:00:10]} 35. h4 {[%clk 0:00:34]}  Nf4 {[%clk 0:00:09]} 36. h5 {[%clk 0:00:31]}  Nd3+ {[%clk 0:00:07]} 37. Kg3 {[%clk 0:00:31]}  Rg8 {[%clk 0:00:02]} 38. h6 {[%clk 0:00:31]}  c5 {[%clk 0:00:02]} 39. h7 {[%clk 0:00:27]} 1-0


[Site "https://www.chess.com"]

[Event "Titled Tuesday Blitz November 15 Late 2022"]
[White "Winterberg, Lukas"]
[Black "Sabuk, Piotr"]
[WhiteFideId "24622702"]
[BlackFideId "1137565"]
[WhiteElo "2349"]
[BlackElo "2326"]
[Result "1/2-1/2"]
[Round "06"]
[TimeControl "180+1"]
[Date "2022.11.16"]
[WhiteClock "0:00:04"]
[BlackClock "0:00:03"]

1. d4 {[%clk 0:02:59]}  Nf6 {[%clk 0:02:52]} 2. Nf3 {[%clk 0:03:00]}  d5 {[%clk 0:02:51]} 3. c4 {[%clk 0:03:00]}  e6 {[%clk 0:02:51]} 4. Nc3 {[%clk 0:02:59]}  Be7 {[%clk 0:02:52]} 5. g3 {[%clk 0:02:59]}  O-O {[%clk 0:02:49]} 6. Bg2 {[%clk 0:03:00]}  Nbd7 {[%clk 0:02:45]} 7. O-O {[%clk 0:03:00]}  c6 {[%clk 0:02:42]} 8. Nd2 {[%clk 0:02:59]}  b5 {[%clk 0:02:18]} 9. cxb5 {[%clk 0:02:57]}  cxb5 {[%clk 0:02:18]} 10. Nxb5 {[%clk 0:02:57]}  Qb6 {[%clk 0:02:17]} 11. a4 {[%clk 0:02:50]}  Ba6 {[%clk 0:02:15]} 12. e4 {[%clk 0:02:40]}  Bxb5 {[%clk 0:02:11]} 13. axb5 {[%clk 0:02:41]}  Qxb5 {[%clk 0:02:12]} 14. Qa4 {[%clk 0:02:19]}  Qxa4 {[%clk 0:01:58]} 15. Rxa4 {[%clk 0:02:20]}  Nb6 {[%clk 0:01:59]} 16. Ra6 {[%clk 0:02:18]}  Rfc8 {[%clk 0:01:57]} 17. exd5 {[%clk 0:02:13]}  Nfxd5 {[%clk 0:01:57]} 18. Ne4 {[%clk 0:02:13]}  Rc7 {[%clk 0:01:53]} 19. Bd2 {[%clk 0:01:49]}  Rd8 {[%clk 0:01:46]} 20. Rfa1 {[%clk 0:01:43]}  Nc8 {[%clk 0:01:18]} 21. Ba5 {[%clk 0:01:36]}  Ndb6 {[%clk 0:01:17]} 22. Nc3 {[%clk 0:01:33]}  Rc4 {[%clk 0:01:04]} 23. d5 {[%clk 0:01:23]}  exd5 {[%clk 0:01:01]} 24. Nxd5 {[%clk 0:01:23]}  Rxd5 {[%clk 0:00:55]} 25. Bxb6 {[%clk 0:01:20]}  Nxb6 {[%clk 0:00:48]} 26. Rxb6 {[%clk 0:01:05]}  axb6 {[%clk 0:00:38]} 27. Bxd5 {[%clk 0:01:05]}  Rd4 {[%clk 0:00:36]} 28. Ra8+ {[%clk 0:01:05]}  Bf8 {[%clk 0:00:36]} 29. Bb3 {[%clk 0:01:01]}  Rb4 {[%clk 0:00:31]} 30. Ba2 {[%clk 0:00:56]}  Rxb2 {[%clk 0:00:28]} 31. Ra7 {[%clk 0:00:56]}  g6 {[%clk 0:00:28]} 32. Bxf7+ {[%clk 0:00:55]}  Kh8 {[%clk 0:00:28]} 33. Bd5 {[%clk 0:00:51]}  Bc5 {[%clk 0:00:28]} 34. Rf7 {[%clk 0:00:51]}  Rd2 {[%clk 0:00:24]} 35. Be6 {[%clk 0:00:50]}  b5 {[%clk 0:00:23]} 36. h4 {[%clk 0:00:49]}  b4 {[%clk 0:00:22]} 37. g4 {[%clk 0:00:49]}  Re2 {[%clk 0:00:17]} 38. Bd5 {[%clk 0:00:47]}  Rd2 {[%clk 0:00:16]} 39. Be6 {[%clk 0:00:44]}  Rd6 {[%clk 0:00:16]} 40. Bb3 {[%clk 0:00:43]}  Rd4 {[%clk 0:00:14]} 41. g5 {[%clk 0:00:38]}  Rxh4 {[%clk 0:00:14]} 42. Rc7 {[%clk 0:00:39]}  Rg4+ {[%clk 0:00:14]} 43. Kf1 {[%clk 0:00:36]}  Rxg5 {[%clk 0:00:15]} 44. Ke2 {[%clk 0:00:35]}  Rf5 {[%clk 0:00:14]} 45. f3 {[%clk 0:00:35]}  Re5+ {[%clk 0:00:12]} 46. Kf1 {[%clk 0:00:30]}  h5 {[%clk 0:00:11]} 47. Kg2 {[%clk 0:00:30]}  Bd4 {[%clk 0:00:09]} 48. Bc2 {[%clk 0:00:30]}  Bc3 {[%clk 0:00:08]} 49. Kh3 {[%clk 0:00:28]}  Rg5 {[%clk 0:00:05]} 50. f4 {[%clk 0:00:23]}  Rg4 {[%clk 0:00:05]} 51. f5 {[%clk 0:00:22]}  gxf5 {[%clk 0:00:05]} 52. Bxf5 {[%clk 0:00:23]}  Rg1 {[%clk 0:00:05]} 53. Kh4 {[%clk 0:00:22]}  Rh1+ {[%clk 0:00:03]} 54. Kg5 {[%clk 0:00:22]}  Kg8 {[%clk 0:00:03]} 55. Be4 {[%clk 0:00:13]}  Rg1+ {[%clk 0:00:02]} 56. Kxh5 {[%clk 0:00:14]}  Kf8 {[%clk 0:00:02]} 57. Bd5 {[%clk 0:00:13]}  Ke8 {[%clk 0:00:02]} 58. Rb7 {[%clk 0:00:12]}  Kd8 {[%clk 0:00:03]} 59. Kh4 {[%clk 0:00:11]}  Bf6+ {[%clk 0:00:02]} 60. Kh3 {[%clk 0:00:11]}  Bc3 {[%clk 0:00:02]} 61. Kh2 {[%clk 0:00:11]}  Rg5 {[%clk 0:00:02]} 62. Bb3 {[%clk 0:00:11]}  Kc8 {[%clk 0:00:03]} 63. Rf7 {[%clk 0:00:10]}  Rc5 {[%clk 0:00:02]} 64. Kg2 {[%clk 0:00:09]}  Be5 {[%clk 0:00:02]} 65. Kf2 {[%clk 0:00:07]}  Rc3 {[%clk 0:00:02]} 66. Be6+ {[%clk 0:00:08]}  Kb8 {[%clk 0:00:01]} 67. Rf5 {[%clk 0:00:07]}  Bd6 {[%clk 0:00:01]} 68. Rb5+ {[%clk 0:00:06]}  Kc7 {[%clk 0:00:02]} 69. Ke2 {[%clk 0:00:06]}  Kc6 {[%clk 0:00:02]} 70. Rf5 {[%clk 0:00:05]}  Bc5 {[%clk 0:00:01]} 71. Rf6 {[%clk 0:00:04]}  Re3+ {[%clk 0:00:01]} 72. Kd2 {[%clk 0:00:03]}  Kb5 {[%clk 0:00:02]} 73. Bf7 {[%clk 0:00:03]}  Re5 {[%clk 0:00:01]} 74. Re6 {[%clk 0:00:03]}  Rf5 {[%clk 0:00:01]} 75. Be8+ {[%clk 0:00:03]}  Kc4 {[%clk 0:00:01]} 76. Re4+ {[%clk 0:00:02]}  Bd4 {[%clk 0:00:02]} 77. Rg4 {[%clk 0:00:01]}  Rf2+ {[%clk 0:00:02]} 78. Ke1 {[%clk 0:00:02]}  Rh2 {[%clk 0:00:02]} 79. Bf7+ {[%clk 0:00:02]}  Kc3 {[%clk 0:00:02]} 80. Rg3+ {[%clk 0:00:03]}  Kc2 {[%clk 0:00:03]} 81. Bd5 {[%clk 0:00:03]}  Bc3+ {[%clk 0:00:03]} 82. Kf1 {[%clk 0:00:03]}  Rd2 {[%clk 0:00:04]} 83. Rg2 {[%clk 0:00:03]}  Rxg2 {[%clk 0:00:02]} 84. Kxg2 {[%clk 0:00:04]}  b3 {[%clk 0:00:03]} 85. Bxb3+ {[%clk 0:00:04]} 1/2-1/2


[Site "https://www.chess.com"]

[Event "Titled Tuesday Blitz November 15 Late 2022"]
[White "Xiong, Jeffery"]
[Black "Sarana, Alexey"]
[WhiteFideId "2047640"]
[BlackFideId "24133795"]
[WhiteElo "2725"]
[BlackElo "2708"]
[Result "1-0"]
[Round "06"]
[TimeControl "180+1"]
[Date "2022.11.15"]
[WhiteClock "0:00:06"]
[BlackClock "0:00:09"]

1. e4 {[%clk 0:03:00]}  c5 {[%clk 0:03:00]} 2. Nc3 {[%clk 0:03:01]}  d6 {[%clk 0:03:00]} 3. f4 {[%clk 0:03:02]}  g6 {[%clk 0:02:59]} 4. Nf3 {[%clk 0:02:59]}  Bg7 {[%clk 0:02:58]} 5. Bb5+ {[%clk 0:02:59]}  Bd7 {[%clk 0:02:58]} 6. Bc4 {[%clk 0:03:00]}  e6 {[%clk 0:02:55]} 7. d4 {[%clk 0:02:48]}  cxd4 {[%clk 0:02:46]} 8. Nxd4 {[%clk 0:02:49]}  Ne7 {[%clk 0:02:45]} 9. Be3 {[%clk 0:02:49]}  O-O {[%clk 0:02:43]} 10. O-O {[%clk 0:02:47]}  Nbc6 {[%clk 0:02:34]} 11. Bb3 {[%clk 0:02:46]}  Na5 {[%clk 0:02:25]} 12. Qd3 {[%clk 0:02:42]}  a6 {[%clk 0:02:21]} 13. Kh1 {[%clk 0:02:42]}  Rc8 {[%clk 0:02:21]} 14. Rad1 {[%clk 0:02:42]}  Qc7 {[%clk 0:02:13]} 15. f5 {[%clk 0:02:22]}  exf5 {[%clk 0:01:35]} 16. Nd5 {[%clk 0:01:54]}  Nxd5 {[%clk 0:01:35]} 17. Bxd5 {[%clk 0:01:55]}  fxe4 {[%clk 0:01:12]} 18. Qxe4 {[%clk 0:01:55]}  Rce8 {[%clk 0:01:11]} 19. Rxf7 {[%clk 0:01:23]}  Rxf7 {[%clk 0:00:26]} 20. Bxf7+ {[%clk 0:01:24]}  Kxf7 {[%clk 0:00:26]} 21. Qd5+ {[%clk 0:01:21]}  Be6 {[%clk 0:00:27]} 22. Nxe6 {[%clk 0:00:57]}  Rxe6 {[%clk 0:00:25]} 23. Rf1+ {[%clk 0:00:57]}  Ke7 {[%clk 0:00:25]} 24. Bg5+ {[%clk 0:00:57]}  Bf6 {[%clk 0:00:25]} 25. Bxf6+ {[%clk 0:00:58]}  Rxf6 {[%clk 0:00:25]} 26. Qg5 {[%clk 0:00:53]}  Qxc2 {[%clk 0:00:13]} 27. Qxf6+ {[%clk 0:00:53]}  Kd7 {[%clk 0:00:14]} 28. Qh8 {[%clk 0:00:47]}  Nc4 {[%clk 0:00:11]} 29. Rf7+ {[%clk 0:00:41]}  Ke6 {[%clk 0:00:12]} 30. Qf6+ {[%clk 0:00:25]}  Kd5 {[%clk 0:00:12]} 31. Qf3+ {[%clk 0:00:26]}  Kc5 {[%clk 0:00:05]} 32. Rc7+ {[%clk 0:00:25]}  Kd4 {[%clk 0:00:05]} 33. Qf4+ {[%clk 0:00:25]}  Kd5 {[%clk 0:00:04]} 34. h3 {[%clk 0:00:21]}  Qb1+ {[%clk 0:00:02]} 35. Kh2 {[%clk 0:00:22]}  Ne5 {[%clk 0:00:03]} 36. Rxb7 {[%clk 0:00:18]}  Qxa2 {[%clk 0:00:03]} 37. Qd2+ {[%clk 0:00:17]}  Ke6 {[%clk 0:00:03]} 38. Rb6 {[%clk 0:00:15]}  Nc4 {[%clk 0:00:04]} 39. Qe2+ {[%clk 0:00:15]}  Kd7 {[%clk 0:00:04]} 40. Rb7+ {[%clk 0:00:14]}  Kc6 {[%clk 0:00:05]} 41. Qe4+ {[%clk 0:00:13]}  d5 {[%clk 0:00:05]} 42. Qe7 {[%clk 0:00:13]}  Qa5 {[%clk 0:00:06]} 43. Qd7+ {[%clk 0:00:13]}  Kc5 {[%clk 0:00:06]} 44. b4+ {[%clk 0:00:13]}  Qxb4 {[%clk 0:00:07]} 45. Rxb4 {[%clk 0:00:14]}  Kxb4 {[%clk 0:00:08]} 46. Qxd5 {[%clk 0:00:14]}  a5 {[%clk 0:00:09]} 47. Qf7 {[%clk 0:00:12]}  a4 {[%clk 0:00:08]} 48. Qxh7 {[%clk 0:00:13]}  a3 {[%clk 0:00:09]} 49. Qxg6 {[%clk 0:00:11]}  a2 {[%clk 0:00:09]} 50. Qg7 {[%clk 0:00:11]}  Kb3 {[%clk 0:00:09]} 51. Qa1 {[%clk 0:00:07]}  Na3 {[%clk 0:00:09]} 52. Qd1+ {[%clk 0:00:04]}  Nc2 {[%clk 0:00:09]} 53. Qd3+ {[%clk 0:00:04]}  Kb2 {[%clk 0:00:09]} 54. Qb5+ {[%clk 0:00:04]}  Kc3 {[%clk 0:00:09]} 55. Qa5+ {[%clk 0:00:03]}  Kb3 {[%clk 0:00:09]} 56. Qd5+ {[%clk 0:00:03]}  Kb2 {[%clk 0:00:09]} 57. Qe5+ {[%clk 0:00:03]}  Kb3 {[%clk 0:00:09]} 58. Qe6+ {[%clk 0:00:03]}  Kb2 {[%clk 0:00:10]} 59. Qf6+ {[%clk 0:00:03]}  Kb3 {[%clk 0:00:10]} 60. h4 {[%clk 0:00:03]}  a1=Q {[%clk 0:00:11]} 61. Qxa1 {[%clk 0:00:04]}  Nxa1 {[%clk 0:00:11]} 62. h5 {[%clk 0:00:05]}  Nc2 {[%clk 0:00:12]} 63. h6 {[%clk 0:00:05]}  Ne3 {[%clk 0:00:09]} 64. h7 {[%clk 0:00:06]}  Ng4+ {[%clk 0:00:09]} 65. Kg1 {[%clk 0:00:06]} 1-0


[Site "https://www.chess.com"]